bitfinex-derivatives/quotes_BNBF0:USTF0_20250608
["timestamp","ask_amount","ask_price","bid_price","bid_amount"]
[1749420107063,1.08541579,655.21,653.96,3.797338]
[1749420107262,1.08541579,655.2,653.9,3.797338]
[1749420107563,1.08541579,655.22,653.91,0.30585248]
[1749420107765,1.142,655.23,653.91,0.30585248]
[1749420107766,1.08541579,655.21,653.91,0.30585248]
[1749420108066,1.08541579,655.22,653.91,4.10319048]
[1749420108863,1.142,655.23,653.91,4.10319048]
[1749420109065,1.142,655.23,654.03,3.797338]
[1749420109367,1.142,655.23,654.04,0.30579169]
[1749420109666,1.142,655.23,654.07,3.797338]
[1749420109866,1.142,655.23,654.08,4.10311099]
[1749420110163,1.142,655.23,654.09,0.30576831]
[1749420110366,1.142,655.23,654.09,4.10310631]
[1749420110863,1.142,655.23,654.09,0.30576831]
[1749420111468,2.22741579,655.23,654.09,0.30576831]
[1749420111663,1.08541579,655.22,654.09,0.30576831]
[1749420112067,1.142,655.23,654.09,0.30576831]
[1749420114465,1.08541579,655.22,654.09,0.30576831]
[1749420114766,1.08541579,655.21,654.09,0.30576831]
[1749420114965,1.08541579,655.2,654.09,0.30576831]
[1749420115169,1.08541579,655.19,654.09,0.30576831]
[1749420115369,1.08541579,655.18,654.09,0.30576831]
[1749420115665,1.08541579,655.17,654.09,0.30576831]
[1749420115965,1.142,655.23,654.09,0.30576831]
[1749420115966,1.08541579,655.16,654.09,0.30576831]
[1749420116168,1.08541579,655.15,654.09,0.30576831]
[1749420116471,1.08541579,655.22,654.09,0.30576831]
[1749420116665,1.08541579,655.21,654.09,0.30576831]
[1749420116870,1.08541579,655.2,654.09,0.30576831]
[1749420117067,1.08541579,655.19,654.09,0.30576831]
[1749420117366,1.08541579,655.18,654.09,0.30576831]
[1749420117566,1.08541579,655.17,654.09,0.30576831]
[1749420117772,1.08541579,655.16,654.09,0.30576831]
[1749420117967,1.08541579,655.15,654.09,0.30576831]
[1749420118167,1.08541579,655.14,654.09,0.30576831]
[1749420118369,1.08541579,655.13,654.09,0.30576831]
[1749420118569,1.08541579,655.22,654.09,0.30576831]
[1749420118768,1.08541579,655.21,654.09,0.30576831]
[1749420118966,1.142,655.23,654.09,0.30576831]
[1749420118967,1.08541579,655.2,654.09,0.30576831]
[1749420119171,1.08541579,655.19,654.09,0.30576831]
[1749420119368,1.11116959,655.18,654.09,0.30576831]
[1749420119573,1.11116959,655.17,654.09,0.30576831]
[1749420119771,1.11116959,655.16,654.09,0.30576831]
[1749420119968,1.11116959,655.15,654.09,0.30576831]
[1749420120172,1.11116959,655.14,654.09,0.30576831]
[1749420120369,1.11116959,655.13,654.09,0.30576831]
[1749420120669,1.11116959,655.22,654.09,0.30576831]
[1749420120868,1.11116959,655.21,654.09,0.30576831]
[1749420121067,1.11116959,655.2,654.09,0.30576831]
[1749420121271,0.26584773,654.94,654.09,0.30576831]
[1749420135994,1.307,654.93,654.09,0.30576831]
[1749420141198,1.11116959,654.92,654.09,0.30576831]
[1749420141396,1.11116959,654.91,654.09,0.30576831]
[1749420141594,1.11116959,654.9,653.5,0.26594017]
[1749420141898,1.11116959,654.89,653.5,0.26594017]
[1749420142094,1.11116959,654.88,653.51,0.30603969]
[1749420142398,1.11116959,654.87,653.51,0.30603969]
[1749420142597,1.11116959,654.86,653.51,0.30603969]
[1749420142793,1.11116959,654.85,653.51,0.30603969]
[1749420143097,1.11116959,654.84,653.51,0.30603969]
[1749420143298,1.11116959,654.91,653.51,0.30603969]
[1749420143499,2.1971386,654.92,653.51,0.30603969]
[1749420143694,2.5025194,654.92,653.68,3.797338]
[1749420144100,2.5025194,654.92,653.7,3.797338]
[1749420144394,2.5025194,654.92,653.51,0.30603969]
[1749420145603,1.11116959,654.91,653.51,0.30603969]
[1749420146101,1.11116959,654.9,653.51,0.30603969]
[1749420146302,1.11116959,654.91,653.51,0.30603969]
[1749420146499,1.11116959,654.9,653.51,0.30603969]
[1749420146704,1.11116959,654.91,653.51,0.30603969]
[1749420147000,1.11116959,654.9,653.51,0.30603969]
[1749420147205,1.11116959,654.89,653.51,0.30603969]
[1749420147403,1.11116959,654.91,653.51,0.30603969]
[1749420147703,2.5025194,654.92,653.51,0.30603969]
[1749420147902,1.11116959,654.91,653.51,0.30603969]
[1749420148599,2.5025194,654.92,653.51,0.30603969]
[1749420148900,1.11116959,654.91,653.51,0.30603969]
[1749420149100,1.11116959,654.9,653.51,0.30603969]
[1749420149304,2.5025194,654.92,653.51,0.30603969]
[1749420150206,2.19596533,654.91,653.51,0.30603969]
[1749420150502,2.1959655,654.9,653.51,0.30603969]
[1749420150803,2.19596456,654.89,653.51,0.30603969]
[1749420151006,2.19596456,654.88,653.51,0.30603969]
[1749420151206,2.19596456,654.87,653.51,0.30603969]
[1749420151502,1.11116959,654.86,653.51,0.30603969]
[1749420151706,1.11116959,654.85,653.51,0.30603969]
[1749420151903,1.11116959,654.84,653.51,0.30603969]
[1749420152103,1.11116959,654.83,653.51,0.30603969]
[1749420152307,1.11116959,654.82,653.51,0.30603969]
[1749420152505,1.11116959,654.81,653.51,0.30603969]
[1749420152707,2.19500736,654.89,653.51,0.30603969]
[1749420152906,2.19426862,654.88,653.51,0.30603969]
[1749420153109,1.11116959,654.87,653.51,0.30603969]
[1749420153306,1.11116959,654.86,653.51,0.30603969]
[1749420153608,1.11116959,654.85,653.51,0.30603969]
[1749420153807,1.11116959,654.84,653.51,0.30603969]
[1749420154007,1.11116959,654.83,653.51,0.30603969]
[1749420154210,1.11116959,654.82,653.51,0.30603969]
[1749420154511,1.11116959,654.81,653.51,0.30603969]
[1749420154712,2.1950195,654.89,653.51,0.30603969]
[1749420154910,2.1950195,654.88,653.51,0.30603969]
[1749420155109,2.19502236,654.87,653.51,0.30603969]
[1749420155309,2.19502236,654.86,653.51,0.30603969]
[1749420155510,1.11116959,654.85,653.51,0.30603969]
[1749420155812,1.11116959,654.84,653.51,0.30603969]
[1749420156114,1.11116959,654.83,653.51,0.30603969]
[1749420156411,1.11116959,654.82,653.51,0.30603969]
[1749420156609,1.11116959,654.81,653.51,0.30603969]
[1749420156813,1.11116959,654.8,653.51,0.30603969]
[1749420157013,1.11116959,654.79,653.51,0.30603969]
[1749420157211,1.11116959,654.78,653.51,0.30603969]
[1749420157414,1.11116959,654.91,653.51,0.30603969]
[1749420157607,1.11116959,654.9,653.51,0.30603969]
[1749420157807,1.11116959,654.89,653.51,0.30603969]
[1749420158013,1.11116959,654.88,653.51,0.30603969]
[1749420158211,1.11116959,654.87,653.51,0.30603969]
[1749420158411,1.11116959,654.86,653.51,0.30603969]
[1749420158711,1.11116959,654.85,653.51,0.30603969]
[1749420158914,1.11116959,654.84,653.51,0.30603969]
[1749420159116,1.11116959,654.83,653.51,0.30603969]
[1749420159315,1.11116959,654.82,653.51,0.30603969]
[1749420159517,1.11116959,654.81,653.51,0.30603969]
[1749420159815,1.11116959,654.8,653.51,0.30603969]
[1749420160009,1.11116959,654.79,653.51,0.30603969]
[1749420160211,1.11116959,654.78,653.51,0.30603969]
[1749420160410,1.11116959,654.77,653.51,0.30603969]
[1749420160614,1.11116959,654.76,653.51,0.30603969]
[1749420160813,1.11116959,654.75,653.51,0.30603969]
[1749420161014,1.11116959,654.74,653.51,0.30603969]
[1749420161213,1.11116959,654.73,653.51,0.30603969]
[1749420161413,1.11116959,654.72,653.51,0.30603969]
[1749420161717,1.11116959,654.71,653.51,0.30603969]
[1749420161917,1.11116959,654.7,653.51,0.30603969]
[1749420162219,1.11116959,654.69,653.51,0.30603969]
[1749420162416,1.11116959,654.68,653.51,0.30603969]
[1749420162616,1.11116959,654.67,653.51,0.30603969]
[1749420162818,2.19221319,654.84,653.51,0.30603969]
[1749420163119,2.19221319,654.83,653.51,0.30603969]
[1749420163319,2.19188685,654.82,653.51,0.30603969]
[1749420163512,2.19188685,654.81,653.51,0.30603969]
[1749420163716,1.11116959,654.8,653.51,0.30603969]
[1749420163914,1.11116959,654.79,653.51,0.30603969]
[1749420164214,1.11116959,654.78,653.51,0.30603969]
[1749420164418,1.11116959,654.77,653.51,0.30603969]
[1749420164713,1.11116959,654.76,653.51,0.30603969]
[1749420164914,1.11116959,654.75,653.51,0.30603969]
[1749420165118,1.11116959,654.74,653.51,0.30603969]
[1749420165314,1.11116959,654.73,653.51,0.30603969]
[1749420165513,1.11116959,654.72,653.51,0.30603969]
[1749420165713,1.11116959,654.71,653.51,0.30603969]
[1749420165915,1.11116959,654.7,653.51,0.30603969]
[1749420166120,1.11116959,654.86,653.51,0.30603969]
[1749420166316,1.11116959,654.85,653.51,0.30603969]
[1749420166515,1.11116959,654.84,653.51,0.30603969]
[1749420166715,2.24790629,654.83,653.51,0.30603969]
[1749420167018,1.11116959,654.82,653.51,0.30603969]
[1749420167215,1.11116959,654.81,653.51,0.30603969]
[1749420167414,1.11116959,654.8,653.51,0.30603969]
[1749420167620,1.11116959,654.79,653.51,0.30603969]
[1749420167821,1.11116959,654.78,653.51,0.30603969]
[1749420168022,1.11116959,654.77,653.51,0.30603969]
[1749420168218,2.1909687,654.82,653.51,0.30603969]
[1749420168419,2.1909687,654.81,653.51,0.30603969]
[1749420168621,2.1909687,654.8,653.51,0.30603969]
[1749420168921,2.19097169,654.79,653.51,0.30603969]
[1749420169122,1.11116959,654.78,653.51,0.30603969]
[1749420169422,1.11116959,654.77,653.51,0.30603969]
[1749420169721,2.19096647,654.83,653.51,0.30603969]
[1749420169919,1.11116959,654.82,653.51,0.30603969]
[1749420170121,1.11116959,654.81,653.51,0.30603969]
[1749420170319,1.11116959,654.8,653.51,0.30603969]
[1749420170518,1.11116959,654.79,653.51,0.30603969]
[1749420170819,1.11116959,654.78,653.51,0.30603969]
[1749420171020,1.11116959,654.82,653.51,0.30603969]
[1749420171219,1.11116959,654.81,653.51,0.30603969]
[1749420171420,1.11116959,654.8,653.51,0.30603969]
[1749420171618,1.11116959,654.79,653.51,0.30603969]
[1749420171819,1.11116959,654.78,653.51,0.30603969]
[1749420172120,1.11116959,654.77,653.51,0.30603969]
[1749420172322,1.11116959,654.76,653.51,0.30603969]
[1749420172620,2.19073677,654.84,653.51,0.30603969]
[1749420172820,1.11116959,654.83,653.51,0.30603969]
[1749420173020,1.11116959,654.82,653.51,0.30603969]
[1749420173223,1.11116959,654.81,653.51,0.30603969]
[1749420173423,1.11116959,654.8,653.51,0.30603969]
[1749420173723,1.11116959,654.79,653.51,0.30603969]
[1749420173923,1.11116959,654.78,653.51,0.30603969]
[1749420174118,1.11116959,654.84,653.51,0.30603969]
[1749420174322,1.11116959,654.83,653.51,0.30603969]
[1749420174520,1.11116959,654.82,653.51,0.30603969]
[1749420174719,1.11116959,654.81,653.51,0.30603969]
[1749420174920,1.11116959,654.8,653.51,0.30603969]
[1749420175120,1.11116959,654.79,653.51,0.30603969]
[1749420175323,1.11116959,654.78,653.51,0.30603969]
[1749420175523,2.19015354,654.86,653.51,0.30603969]
[1749420175723,2.19015354,654.85,653.51,0.30603969]
[1749420175923,2.19015354,654.84,653.51,0.30603969]
[1749420176224,2.19014349,654.83,653.51,0.30603969]
[1749420176524,2.19262467,654.82,653.51,0.30603969]
[1749420176724,2.19262216,654.81,653.51,0.30603969]
[1749420177026,2.19262203,654.8,653.51,0.30603969]
[1749420177322,2.19262203,654.79,653.51,0.30603969]
[1749420177624,1.1367367,654.85,653.51,0.30603969]
[1749420177625,2.19262203,654.78,653.51,0.30603969]
[1749420177821,2.19262203,654.77,653.51,0.30603969]
[1749420178125,1.11116959,654.76,653.51,0.30603969]
[1749420178326,1.11116959,654.75,653.51,0.30603969]
[1749420178525,1.11116959,654.74,653.51,0.30603969]
[1749420178826,1.11116959,654.82,653.51,0.30603969]
[1749420179028,1.11116959,654.81,653.51,0.30603969]
[1749420179227,1.11116959,654.8,653.51,0.30603969]
[1749420179428,1.11116959,654.79,653.51,0.30603969]
[1749420179626,1.11116959,654.78,653.51,0.30603969]
[1749420179830,1.11116959,654.77,653.51,0.30603969]
[1749420180031,1.11116959,654.76,653.51,0.30603969]
[1749420180227,1.11116959,654.75,653.51,0.30603969]
[1749420180428,1.11116959,654.74,653.51,0.30603969]
[1749420180629,1.11116959,654.73,653.51,0.30603969]
[1749420180928,1.1367367,654.7,653.51,0.30603969]
[1749420181133,2.24790629,654.69,653.51,0.30603969]
[1749420181430,2.19213115,654.68,653.51,0.30603969]
[1749420181630,2.19179448,654.67,653.51,0.30603969]
[1749420181827,2.19233429,654.66,653.51,0.30603969]
[1749420182033,2.1923329,654.65,653.51,0.30603969]
[1749420182231,2.19233293,654.64,653.51,0.30603969]
[1749420182530,2.19233293,654.63,653.51,0.30603969]
[1749420182734,1.11116959,654.62,653.51,0.30603969]
[1749420183032,2.19232689,654.78,653.51,0.30603969]
[1749420183229,1.41662035,654.77,653.51,0.30603969]
[1749420183435,1.11116959,654.76,653.51,0.30603969]
[1749420183729,1.11116959,654.75,653.51,0.30603969]
[1749420183932,1.11116959,654.76,653.51,0.30603969]
[1749420184130,1.11116959,654.75,653.51,0.30603969]
[1749420184334,1.11116959,654.76,653.51,0.30603969]
[1749420184633,1.11116959,654.75,653.51,0.30603969]
[1749420184830,1.11116959,654.76,653.51,0.30603969]
[1749420185735,1.11116959,654.75,653.51,0.30603969]
[1749420185937,1.11116959,654.76,653.51,0.30603969]
[1749420186132,1.11116959,654.75,653.51,0.30603969]
[1749420186433,1.11116959,654.76,653.51,0.30603969]
[1749420186630,1.11116959,654.75,653.51,0.30603969]
[1749420186830,1.11116959,654.76,653.51,0.30603969]
[1749420187037,1.11116959,654.75,653.51,0.30603969]
[1749420187238,1.11116959,654.74,653.51,0.30603969]
[1749420187534,1.11116959,654.73,653.51,0.30603969]
[1749420187739,1.11116959,654.72,653.51,0.30603969]
[1749420187938,1.11116959,654.71,653.51,0.30603969]
[1749420188237,1.11116959,654.76,653.51,0.30603969]
[1749420188435,1.11116959,654.75,653.51,0.30603969]
[1749420188636,1.11116959,654.74,653.51,0.30603969]
[1749420188850,1.11116959,654.73,653.51,0.30603969]
[1749420189139,1.11116959,654.72,653.51,0.30603969]
[1749420189338,1.11116959,654.71,653.51,0.30603969]
[1749420189540,1.11116959,654.76,653.51,0.30603969]
[1749420189840,1.11116959,654.75,653.51,0.30603969]
[1749420190037,1.11116959,654.74,653.51,0.30603969]
[1749420190340,1.11116959,654.73,653.51,0.30603969]
[1749420190541,2.90916959,654.72,653.51,0.30603969]
[1749420190737,1.11116959,654.71,653.51,0.30603969]
[1749420194038,1.11116959,654.7,653.51,0.30603969]
[1749420194243,1.11116959,654.69,653.51,0.30603969]
[1749420194443,1.11116959,654.68,653.51,0.30603969]
[1749420194642,1.11116959,654.67,653.51,0.30603969]
[1749420194843,1.11116959,654.71,653.51,0.30603969]
[1749420195139,1.11116959,654.7,653.51,0.30603969]
[1749420195343,1.11116959,654.69,653.51,0.30603969]
[1749420195539,1.11116959,654.68,653.51,0.30603969]
[1749420195839,1.11116959,654.67,653.51,0.30603969]
[1749420196039,1.798,654.72,653.51,0.30603969]
[1749420196040,1.11116959,654.71,653.51,0.30603969]
[1749420196239,1.11116959,654.7,653.51,0.30603969]
[1749420196538,1.11116959,654.69,653.51,0.30603969]
[1749420196840,1.11116959,654.68,653.51,0.30603969]
[1749420197039,1.11116959,654.67,653.51,0.30603969]
[1749420197244,1.11116959,654.66,653.51,0.30603969]
[1749420197445,2.24790629,654.71,653.51,0.30603969]
[1749420197645,1.11116959,654.7,653.51,0.30603969]
[1749420197844,1.11116959,654.69,653.51,0.30603969]
[1749420198044,1.11116959,654.68,653.51,0.30603969]
[1749420198342,1.11116959,654.67,653.51,0.30603969]
[1749420198644,1.11116959,654.66,653.51,0.30603969]
[1749420198841,1.11116959,654.65,653.51,0.30603969]
[1749420199141,1.11116959,654.64,653.51,0.30603969]
[1749420199346,1.11116959,654.69,653.51,0.30603969]
[1749420199548,1.11116959,654.68,653.51,0.30603969]
[1749420199747,1.11116959,654.67,653.51,0.30603969]
[1749420199947,1.11116959,654.66,653.51,0.30603969]
[1749420200247,1.11116959,654.65,653.51,0.30603969]
[1749420200442,1.11116959,654.64,653.51,0.30603969]
[1749420200646,1.11116959,654.63,653.51,0.30603969]
[1749420200845,1.11116959,654.62,653.51,0.30603969]
[1749420201047,1.11116959,654.69,653.51,0.30603969]
[1749420201244,1.11116959,654.68,653.51,0.30603969]
[1749420201444,1.11116959,654.71,653.51,0.30603969]
[1749420201643,1.11116959,654.7,653.51,0.30603969]
[1749420201845,1.11116959,654.69,653.51,0.30603969]
[1749420202045,1.11116959,654.68,653.51,0.30603969]
[1749420202243,1.11116959,654.76,653.51,0.30603969]
[1749420202445,1.11116959,654.75,653.51,0.30603969]
[1749420202648,1.11116959,654.74,653.51,0.30603969]
[1749420202846,1.11116959,654.73,653.51,0.30603969]
[1749420203048,1.11116959,654.72,653.51,0.30603969]
[1749420203349,1.11116959,654.71,653.51,0.30603969]
[1749420203545,1.11116959,654.7,653.51,0.30603969]
[1749420203750,1.11116959,654.69,653.51,0.30603969]
[1749420203946,1.11116959,654.68,653.51,0.30603969]
[1749420204151,1.11116959,654.67,653.51,0.30603969]
[1749420204350,1.11116959,654.66,653.51,0.30603969]
[1749420204551,1.11116959,654.65,653.51,0.30603969]
[1749420204847,1.11116959,654.64,653.51,0.30603969]
[1749420205051,1.828,654.64,653.51,0.30603969]
[1749420205350,1.11116959,654.63,653.51,0.30603969]
[1749420206651,1.11116959,654.62,653.51,0.30603969]
[1749420206953,1.11116959,654.63,653.51,0.30603969]
[1749420207147,1.11116959,654.62,653.51,0.30603969]
[1749420207351,1.11116959,654.63,653.51,0.30603969]
[1749420207550,1.11116959,654.62,653.51,0.30603969]
[1749420207751,1.11116959,654.61,653.51,0.30603969]
[1749420207950,1.09319443,654.6,653.51,0.30603969]
[1749420208151,1.09319443,654.63,653.51,0.30603969]
[1749420208349,1.09319443,654.62,653.51,0.30603969]
[1749420208549,1.09319443,654.61,653.51,0.30603969]
[1749420208851,1.09319443,654.6,653.51,0.30603969]
[1749420209048,1.09319443,654.59,653.51,0.30603969]
[1749420209249,1.09349348,654.63,653.51,0.30603969]
[1749420209553,1.09349348,654.62,653.51,0.30603969]
[1749420209854,1.09349348,654.61,653.51,0.30603969]
[1749420210053,1.09349348,654.6,653.51,0.30603969]
[1749420210251,1.09349348,654.59,653.51,0.30603969]
[1749420210554,1.09349348,654.58,653.51,0.30603969]
[1749420210754,1.09349348,654.57,653.51,0.30603969]
[1749420210954,1.09349348,654.63,653.51,0.30603969]
[1749420211155,1.09349348,654.62,653.51,0.30603969]
[1749420211355,1.09349348,654.61,653.51,0.30603969]
[1749420211553,1.09349348,654.6,653.51,0.30603969]
[1749420211856,1.09349348,654.59,653.51,0.30603969]
[1749420212151,1.09349348,654.58,653.51,0.30603969]
[1749420212353,1.09349348,654.57,653.51,0.30603969]
[1749420212556,1.09349348,654.56,653.51,0.30603969]
[1749420212751,1.09349348,654.55,653.51,0.30603969]
[1749420212955,1.09349348,654.54,653.51,0.30603969]
[1749420213253,1.09349348,654.63,653.51,0.30603969]
[1749420213453,1.09349348,654.62,653.51,0.30603969]
[1749420213657,1.09349348,654.61,653.51,0.30603969]
[1749420213853,1.09349348,654.6,653.51,0.30603969]
[1749420214053,1.09349348,654.59,653.51,0.30603969]
[1749420214252,1.09349348,654.58,653.51,0.30603969]
[1749420214457,1.09349348,654.57,653.51,0.30603969]
[1749420214756,1.09349348,654.56,653.51,0.30603969]
[1749420214957,1.09349348,654.55,653.51,0.30603969]
[1749420215157,1.09349348,654.54,653.51,0.30603969]
[1749420215358,1.09349348,654.53,653.51,0.30603969]
[1749420215559,1.09349348,654.63,653.51,0.30603969]
[1749420215755,1.09349348,654.62,653.51,0.30603969]
[1749420215955,1.09349348,654.61,653.51,0.30603969]
[1749420216258,1.09349348,654.6,653.51,0.30603969]
[1749420216458,1.09349348,654.59,653.51,0.30603969]
[1749420216654,1.09349348,654.58,653.51,0.30603969]
[1749420216955,1.828,654.64,653.51,0.30603969]
[1749420216956,1.09349348,654.63,653.51,0.30603969]
[1749420217158,1.09349348,654.62,653.51,0.30603969]
[1749420217354,1.09349348,654.61,653.51,0.30603969]
[1749420217556,1.09349348,654.6,653.51,0.30603969]
[1749420217757,1.09349348,654.59,653.51,0.30603969]
[1749420217961,1.09349348,654.63,653.51,0.30603969]
[1749420218157,1.09349348,654.62,653.51,0.30603969]
[1749420218361,1.09349348,654.61,653.51,0.30603969]
[1749420218558,1.09349348,654.6,653.51,0.30603969]
[1749420218764,1.09349348,654.59,653.51,0.30603969]
[1749420218961,1.09349348,654.58,653.51,0.30603969]
[1749420219165,1.09349348,654.63,653.51,0.30603969]
[1749420219365,1.09349348,654.62,653.51,0.30603969]
[1749420219563,1.09349348,654.61,653.51,0.30603969]
[1749420219762,1.09349348,654.6,653.51,0.30603969]
[1749420219966,1.09349348,654.59,653.51,0.30603969]
[1749420220166,1.828,654.64,653.51,0.30603969]
[1749420220167,1.09349348,654.58,653.51,0.30603969]
[1749420220363,1.09349348,654.63,653.51,0.30603969]
[1749420220661,1.09349348,654.62,653.51,0.30603969]
[1749420220863,1.09349348,654.61,653.51,0.30603969]
[1749420221166,1.09349348,654.6,653.51,0.30603969]
[1749420221363,1.09349348,654.59,653.51,0.30603969]
[1749420221565,1.09349348,654.63,653.51,0.30603969]
[1749420221766,1.09349348,654.62,653.51,0.30603969]
[1749420221964,1.09349348,654.61,653.51,0.30603969]
[1749420222167,1.09349348,654.6,653.51,0.30603969]
[1749420222467,1.09349348,654.59,653.51,0.30603969]
[1749420222668,1.09349348,654.63,653.51,0.30603969]
[1749420222864,1.09349348,654.62,653.51,0.30603969]
[1749420223166,1.09349348,654.61,653.51,0.30603969]
[1749420223366,1.09349348,654.6,653.51,0.30603969]
[1749420223565,1.09349348,654.59,653.51,0.30603969]
[1749420223865,1.09349348,654.63,653.51,0.30603969]
[1749420224068,1.09349348,654.62,653.51,0.30603969]
[1749420224268,1.09349348,654.61,653.51,0.30603969]
[1749420224568,1.09349348,654.6,653.51,0.30603969]
[1749420224765,1.09349348,654.59,653.51,0.30603969]
[1749420225065,1.09349348,654.63,653.51,0.30603969]
[1749420225265,1.09349348,654.62,653.51,0.30603969]
[1749420225465,1.09349348,654.61,653.51,0.30603969]
[1749420225668,1.09349348,654.6,653.51,0.30603969]
[1749420225970,1.09349348,654.59,653.51,0.30603969]
[1749420226167,1.09349348,654.63,653.51,0.30603969]
[1749420226366,1.09349348,654.62,653.51,0.30603969]
[1749420226565,1.09349348,654.61,653.51,0.30603969]
[1749420226771,1.09349348,654.6,653.51,0.30603969]
[1749420226971,1.09349348,654.59,653.51,0.30603969]
[1749420227172,1.09349348,654.58,653.51,0.30603969]
[1749420227373,1.09349348,654.57,653.51,0.30603969]
[1749420227572,1.09349348,654.56,653.51,0.30603969]
[1749420227872,1.09349348,654.55,653.51,0.30603969]
[1749420228075,1.09349348,654.71,653.51,0.30603969]
[1749420228268,1.09349348,654.7,653.51,0.30603969]
[1749420228568,1.09349348,654.69,653.51,0.30603969]
[1749420228771,1.09349348,654.68,653.51,0.30603969]
[1749420228967,0.30545076,654.77,653.61,3.797338]
[1749420228968,1.09349348,654.67,653.61,3.797338]
[1749420229172,1.09349348,654.66,653.61,3.797338]
[1749420229369,1.1386598,654.7,653.61,3.797338]
[1749420229370,1.09349348,654.65,653.61,3.797338]
[1749420229573,1.09349348,654.64,653.61,3.797338]
[1749420229768,1.09349348,654.63,653.61,3.797338]
[1749420229969,1.09349348,654.62,653.61,3.797338]
[1749420230169,1.09349348,654.61,653.61,3.797338]
[1749420230469,1.09349348,654.6,653.61,3.797338]
[1749420230767,2.29249348,654.59,653.61,3.797338]
[1749420230974,1.09349348,654.58,653.61,3.797338]
[1749420231270,1.09349348,654.57,653.61,3.797338]
[1749420231473,1.09349348,654.56,653.61,3.797338]
[1749420231672,1.09349348,654.58,653.61,3.797338]
[1749420231874,1.09349348,654.57,653.61,3.797338]
[1749420232072,1.09349348,654.56,653.61,3.797338]
[1749420232376,1.09349348,654.58,653.61,3.797338]
[1749420232572,1.09349348,654.57,653.61,3.797338]
[1749420232773,1.09349348,654.56,653.61,3.797338]
[1749420232976,1.09349348,654.58,653.61,3.797338]
[1749420233176,1.09349348,654.57,653.61,3.797338]
[1749420233375,1.09349348,654.56,653.61,3.797338]
[1749420233579,1.09349348,654.58,653.61,3.797338]
[1749420233775,1.09349348,654.57,653.61,3.797338]
[1749420233975,1.09349348,654.56,653.62,3.797338]
[1749420234174,1.09349348,654.58,653.62,3.797338]
[1749420234377,1.09349348,654.57,653.62,3.797338]
[1749420234575,1.09349348,654.56,653.62,3.797338]
[1749420234879,1.09349348,654.58,653.62,3.797338]
[1749420235077,1.09349348,654.57,653.62,3.797338]
[1749420235274,1.09349348,654.56,653.62,3.797338]
[1749420235473,1.199,654.59,653.62,3.797338]
[1749420235474,1.09349348,654.58,653.62,3.797338]
[1749420235677,1.09349348,654.57,653.62,3.797338]
[1749420235878,1.09349348,654.56,653.62,3.797338]
[1749420236077,1.09349348,654.58,653.62,3.797338]
[1749420236274,1.199,654.59,653.62,3.797338]
[1749420236278,1.09349348,654.57,653.62,3.797338]
[1749420236475,1.09349348,654.56,653.62,3.797338]
[1749420236678,1.09349348,654.58,653.62,3.797338]
[1749420236878,1.199,654.59,653.62,3.797338]
[1749420236879,1.09349348,654.57,653.62,3.797338]
[1749420237075,1.09349348,654.56,653.61,3.797338]
[1749420237379,1.09349348,654.55,653.61,3.797338]
[1749420237575,1.09349348,654.54,653.61,3.797338]
[1749420237775,1.09349348,654.58,653.61,3.797338]
[1749420238080,1.09349348,654.57,653.61,3.797338]
[1749420238279,1.199,654.59,653.61,3.797338]
[1749420238280,1.09349348,654.56,653.61,3.797338]
[1749420238575,1.09349348,654.55,653.61,3.797338]
[1749420238780,1.09349348,654.54,653.61,3.797338]
[1749420238976,1.09349348,654.58,653.61,3.797338]
[1749420239276,1.09349348,654.57,653.58,3.797338]
[1749420239476,1.09349348,654.56,653.58,3.797338]
[1749420239680,1.09349348,654.55,653.58,3.797338]
[1749420239881,1.199,654.59,653.58,3.797338]
[1749420239882,1.09349348,654.54,653.58,3.797338]
[1749420240178,1.09349348,654.58,653.58,3.797338]
[1749420240378,1.09349348,654.57,653.58,3.797338]
[1749420240578,1.09349348,654.56,653.58,3.797338]
[1749420240780,1.09349348,654.55,653.58,3.797338]
[1749420241081,1.09349348,654.54,653.57,3.797338]
[1749420241281,1.09349348,654.58,653.57,3.797338]
[1749420241581,1.09349348,654.57,653.57,3.797338]
[1749420241878,1.09349348,654.56,653.57,3.797338]
[1749420242077,1.09349348,654.55,653.59,3.797338]
[1749420242277,1.09349348,654.54,653.59,3.797338]
[1749420242482,1.09349348,654.53,653.6,3.797338]
[1749420242779,1.09349348,654.52,653.6,3.797338]
[1749420242983,1.09349348,654.51,653.6,3.797338]
[1749420243179,1.09349348,654.58,653.6,3.797338]
[1749420243383,1.09349348,654.57,653.61,3.797338]
[1749420243680,1.09349348,654.56,653.61,3.797338]
[1749420243881,1.09349348,654.55,653.61,3.797338]
[1749420244181,1.09349348,654.54,653.61,3.797338]
[1749420244380,1.199,654.59,653.61,3.797338]
[1749420244381,1.09349348,654.53,653.61,3.797338]
[1749420244582,1.09349348,654.52,653.51,0.30603969]
[1749420244780,1.09349348,654.51,653.51,0.30603969]
[1749420244982,1.09349348,654.5,653.51,0.30603969]
[1749420245182,1.09349348,654.49,653.51,0.30603969]
[1749420245482,1.09349348,654.48,653.51,0.30603969]
[1749420245679,1.09349348,654.47,653.51,0.30603969]